Cogmind - Beta 13 @@@ ROGUE MODE // 2024.07.31 @ 22:42:43 Player: CONM Result: Destroyed by 5E-OFE(z) with Zionite Laser-S Performance ------------- Evolutions (3) 1500 Regions Visited (9) 1800 Robots Destroyed (126) 630 Value Destroyed (3973) 3973 Prototype IDs (13) 260 Alien Tech Used (0) 0 Bonus (889) 889 TOTAL SCORE: 9052 Bonus ------- High Alert Combat Kills 289 Met Imprinter 300 Was Imprinted 300 Cogmind --------- Core Integrity 0/700 Matter 159/300 Energy 99/100 System Corruption 0% Temperature Cool (9) Movement Core (50) Location -7/Deep Caves Parts ------- > --- POWER (1) -------- (None) > --- PROPULSION (3) --- (None) > --- UTILITY (6) ------ (None) > --- WEAPON (3) ------- (None) > --- INVENTORY (5) ---- Terrain Scanner Hardlight Generator Hardlight Generator Advanced Hacking Suite Relay Coupler [Behemoth] (13) Peak State ------------ > --- POWER ------------ Improved Deuterium Engine > --- PROPULSION ------- Wheel Armored Huge Wheel > --- UTILITY ---------- Improved Heat Sink Huge Storage Unit Advanced Terrain Scan Processor Improved Targeting Computer Improved Medium Armor Plating Medium Reactive Plating > --- WEAPON ----------- Heavy Assault Rifle Improved Assault Rifle Chainsword > --- INVENTORY -------- Deuterium Engine Micro Nuclear Core Meta Core Advanced Treads Medium Treads Wheel Improved Heat Sink Compact Battery Improved Signal Interpreter Target Analyzer Transmission Jammer Improved Light Armor Plating Hardlight Generator Hacking Suite Improved Field Recycling Unit Improved Field Recycling Unit Improved Assault Rifle Improved Assault Rifle Gauss Cannon Gauss Cannon Gauss Cannon Missile Launcher Heavy Missile Launcher Improved Datajack Remote Datajack [Rating: 49] Favorites ----------- Power Light Nuclear Core Engine Improved Deuterium Engine Power Core Light Nuclear Core Propulsion Wheel Treads Advanced Treads Wheel Wheel Utility Huge Storage Unit Device Improved Heat Sink Storage Huge Storage Unit Processor Improved Targeting Computer Protection Improved Light Armor Plating Weapon Gauss Cannon Energy Cannon Heavy Particle Cannon Ballistic Gun Improved Assault Rifle Ballistic Cannon Gauss Cannon Launcher Rocket Launcher Slashing Weapon Chainsword Piercing Weapon CR-A16's Pointy Stick Build | -11 -10 -10 -10 -8 -7 -7 -7 -7 -7 ------- Run | Yrd Mat Min Sub Mat Fac Low Low Zio Dee Slots Evolved 6 | . . . . 4 2 . . . . Power . | . . . . . . . . . . Propulsion 1 | . . . . . 1 . . . . Utility 4 | . . . . 4 . . . . . Weapon 1 | . . . . . 1 . . . . Parts Attached 135 | 7 7 3 17 48 28 6 15 3 1 Power 13 | 1 1 . 1 6 2 . 2 . . Engine 7 | 1 . . 1 2 2 . 1 . . Core 6 | . 1 . . 4 . . 1 . . Reactor . | . . . . . . . . . . Propulsion 31 | 2 2 2 5 10 5 1 3 1 . Treads 12 | 2 2 . 2 2 . . 3 1 . Leg . | . . . . . . . . . . Wheel 19 | . . 2 3 8 5 1 . . . Hover . | . . . . . . . . . . Flight . | . . . . . . . . . . Utility 38 | 2 2 1 2 16 11 1 3 . . Device 13 | 1 . . . 5 6 . 1 . . Storage 4 | 1 2 1 . . . . . . . Processor 4 | . . . . 1 2 . 1 . . Hackware . | . . . . . . . . . . Protection 17 | . . . 2 10 3 1 1 . . Artifact . | . . . . . . . . . . Weapon 53 | 2 2 . 9 16 10 4 7 2 1 Energy Gun . | . . . . . . . . . . Energy Cannon 2 | . . . . 2 . . . . . Ballistic Gun 16 | 2 2 . 4 2 5 . . 1 . Ballistic Cannon 15 | . . . 1 5 3 2 3 . 1 Launcher 11 | . . . 1 6 . 2 2 . . Special Weapon . | . . . . . . . . . . Impact Weapon . | . . . . . . . . . . Slashing Weapon 8 | . . . 3 1 2 . 2 . . Piercing Weapon 1 | . . . . . . . . 1 . Special Melee Weapon . | . . . . . . . . . . Unidentified Prototypes 1 | . . . . . 1 . . . . Parts Lost 63 | . . . 7 27 8 1 13 . 7 Power 9 | . . . 1 5 . . 2 . 1 Propulsion 16 | . . . 3 6 2 1 2 . 2 Utility 20 | . . . . 11 3 . 3 . 3 Weapon 18 | . . . 3 5 3 . 6 . 1 Highest Loss Streak 18 | . . . 4 18 4 1 6 . 7 To Critical Strikes . | . . . . . . . . . . Average Slot Usage (%) 88 | . 98 100 97 91 80 86 70 87 87 Engine 3 | . 11 . 4 2 6 7 4 . . Core 5 | . 2 14 9 5 . . 1 7 6 Treads 4 | . 27 7 . . . . 7 21 21 Wheel 14 | . . 20 27 15 12 9 2 . . Device 7 | . 14 14 1 14 7 15 7 . . Storage 9 | . 14 14 14 9 7 7 7 7 6 Processor 8 | . . . . 7 12 15 15 23 21 Protection 10 | . . . 12 17 9 6 6 7 6 Ballistic Gun 9 | . 27 28 6 1 19 7 2 4 6 Ballistic Cannon 5 | . . . 2 13 2 14 9 . 6 Launcher 1 | . . . 5 1 . . . . . Slashing Weapon 4 | . . . 12 . . . 3 7 6 Naked Turns 13 | . . . . . . . . . 13 Heaviest Build 133 | 14 89 88 102 133 127 112 114 99 102 Greatest Support 73 | 40 40 40 40 42 38 38 50 73 73 Greatest Overweight (x) 37 | . 3 4 9 9 12 3 37 1 4 Average Overweight (x) 3 | . . 2 3 4 3 2 2 1 . Largest Inventory Capacity 25 | 8 25 25 25 25 25 25 25 25 25 Average Capacity 24 | 6 8 20 25 25 25 25 25 25 24 Most Carried 25 | 4 8 12 17 25 25 22 22 20 22 Average Carried 18 | 2 6 10 15 22 22 21 17 17 21 Final Capacity 25 | 8 8 25 25 25 25 25 25 25 5 Final Carried 22 | 4 8 12 17 18 21 22 15 20 5 Class Distribution -------------------- 67% | Mutant 11% | Tank 9% | Gunner 7% | Scavenger-Mutant Dominant Class ---------------- Mutant | -10/Materials Mutant | -10/Mines Mutant | -10/Subcaves Mutant | -8/Materials Tank | -7/Factory Gunner | -7/Lower Caves Mutant | -7/Lower Caves Mutant | -7/Zion Mutant | -7/Deep Caves Resources | -11 -10 -10 -10 -8 -7 -7 -7 -7 -7 ----------- Run | Yrd Mat Min Sub Mat Fac Low Low Zio Dee Matter Collected 3677 | 242 168 64 261 1647 900 119 216 44 16 Remotely 1379 | . . . . 1379 . . . . . Salvage Created 3544 | 18 231 . 335 1178 1444 100 222 . 16 Parts 207 | 5 13 . 22 84 70 6 7 . . Haulers Intercepted 2 | . . . . 1 1 . . . . Recyclers Shooed 3 | . . . . 1 2 . . . . Parts Field Recycled 11 | . . . . . 8 . 3 . . Retrieved Matter 222 | . . . . . 192 . 30 . . Parts Self-Destructed 20 | . . . 9 . . 3 8 . . Prevented 5 | . . . . . . . 5 . . Kills | -11 -10 -10 -10 -8 -7 -7 -7 -7 -7 ------- Run | Yrd Mat Min Sub Mat Fac Low Low Zio Dee Combat Hostiles Destroyed 99 | . 7 . 12 40 25 4 11 . . Melee 2 | . . . . . . . 2 . . Guns 32 | . 7 . 3 3 19 . . . . Cannons 25 | . . . 1 15 6 1 2 . . AOE 39 | . . . 8 21 . 3 7 . . Classes Destroyed 18 | 1 2 . 1 12 2 . . . . Worker 5 | . . . . 2 3 . . . . Builder 4 | . . . . 2 2 . . . . Tunneler 5 | 1 . . . 2 2 . . . . Hauler 2 | . . . . 1 1 . . . . Recycler 7 | . . . . 4 3 . . . . Operator 1 | . . . . 1 . . . . . Watcher 3 | . . . . 3 . . . . . Swarmer 28 | . 3 . . 14 5 . 6 . . Cutter 2 | . . . . 2 . . . . . Grunt 36 | . 4 . . 14 10 3 5 . . Brawler 1 | . . . . 1 . . . . . Duelist 2 | . . . . . 1 1 . . . Protector 2 | . . . . 2 . . . . . Sentry 7 | . . . . 5 2 . . . . Hunter 2 | . . . . 1 1 . . . . Programmer 6 | . . . . . 6 . . . . Heavy 1 | . . . . 1 . . . . . Subdweller 12 | . . . 12 . . . . . . Decomposer 6 | . . . . . . 1 5 . . Best Kill Streak 10 | 1 3 . 2 10 5 4 6 . . Combat Bots Only 8 | . 3 . 2 8 5 4 6 . . Max Kills in Single Turn 5 | 1 1 . 1 5 2 1 3 . . Gunslinging . | . . . . . . . . . . Exploded 4 | . . . 1 4 . 1 3 . . Melee 1 | . . . . . . . 1 . . Uniques/NPCs Destroyed . | . . . . . . . . . . Combat | -11 -10 -10 -10 -8 -7 -7 -7 -7 -7 -------- Run | Yrd Mat Min Sub Mat Fac Low Low Zio Dee Hostile Shots Fired 769 | . 42 . 53 266 221 26 104 . 57 Missed 236 | . 12 . 16 73 61 12 37 . 25 Damage Taken 8991 | . 333 . 948 3485 1793 302 1086 . 1044 Core 1421 | . 41 . 164 500 270 18 175 . 253 Absorbed by Shields 80 | . . . . . 80 . . . . Redirected to Shielding 109 | . . . . 109 . . . . . Ignored by Resistances 298 | . . . 4 162 132 . . . . Core Remaining (%) 42 | 100 . . 18 9 . . . . . Volleys Fired 283 | 4 21 2 37 109 83 9 15 . 3 Largest 3 | 2 2 2 2 2 3 3 3 . 2 Hottest 132 | 40 40 40 53 119 119 119 132 . 76 Shots Fired 612 | 8 42 4 52 203 232 25 40 . 6 Gun 340 | 8 42 4 30 38 196 8 11 . 3 Cannon 220 | . . . 9 140 36 10 22 . 3 Launcher 52 | . . . 13 25 . 7 7 . . Special . | . . . . . . . . . . Kinetic 539 | 8 42 4 39 157 232 18 33 . 6 Thermal 30 | . . . . 30 . . . . . Explosive 43 | . . . 13 16 . 7 7 . . Electromagnetic . | . . . . . . . . . . Robot Hit Streak 29 | 4 9 10 14 15 29 10 9 . 1 Robot Miss Streak 6 | 2 3 1 3 6 3 2 6 . 5 Penetration Max 1 | . . . . . 1 . . . . Secondary Targets 1 | . . . . . 1 . . . . Max Gunslinging Chain 1 | . . . . . 1 . . . . Shots Hit Robots 415 | 5 29 3 38 119 176 15 28 . 2 Core Hits 224 | 2 15 1 22 85 68 11 20 . . Critical Kills . | . . . . . . . . . . Critical Parts Destroyed 3 | . 1 . . 1 1 . . . . Critical Strikes 19 | . 1 . 2 4 9 . 3 . . Destroy 5 | . 1 . 2 1 1 . . . . Blast 14 | . . . . 3 8 . 3 . . Melee Attacks 58 | . . . 37 6 3 . 11 . 1 Impact . | . . . . . . . . . . Slashing 58 | . . . 37 6 3 . 11 . 1 Piercing . | . . . . . . . . . . Sneak Attacks 2 | . . . . 1 1 . . . . Combat Hostiles . | . . . . . . . . . . Follow-up Attacks . | . . . . . . . . . . Damage Inflicted 12027 | 54 322 23 1291 4688 3287 782 1490 . 90 Guns 4012 | 54 322 23 373 556 2422 115 127 . 20 Cannons 3250 | . . . 165 1838 801 110 336 . . Explosions 4348 | . . . 753 2207 . 557 831 . . Melee 383 | . . . . 87 64 . 162 . 70 Ramming 34 | . . . . . . . 34 . . Kinetic 7610 | 54 322 23 538 2742 3223 225 463 . 20 Thermal 400 | . . . . 400 . . . . . Explosive 3600 | . . . 753 1459 . 557 831 . . Electromagnetic . | . . . . . . . . . . Impact . | . . . . . . . . . . Slashing 383 | . . . . 87 64 . 162 . 70 Piercing . | . . . . . . . . . . Highest Corruption 6 | . . . . . 6 6 6 6 . Average Corruption 4 | . . . . . 3 6 6 6 . Corruption Purged . | . . . . . . . . . . Corruption Blocked . | . . . . . . . . . . Effects 75 | . . . . . 33 11 29 2 . Message Errors 14 | . . . . . 7 1 5 1 . Matter Fused 19 | . . . . . 10 1 8 . . Heat Flow Errors 8 | . . . . . 3 3 2 . . Energy Discharges 7 | . . . . . 2 1 3 1 . Parts Rejected 1 | . . . . . . . 1 . . Parts Fused 1 | . . . . . . . 1 . . Data Loss (minor) 17 | . . . . . 7 3 7 . . Data Loss (major) 2 | . . . . . 2 . . . . Misfires 1 | . . . . . . . 1 . . Weapon Failures 5 | . . . . . 2 2 1 . . Overload Shots . | . . . . . . . . . . Overflow Damage 371 | . . . . 73 79 39 122 . 58 Projectiles 181 | . . . . 31 79 19 52 . . Explosions 119 | . . . . 42 . 20 57 . . Melee 71 | . . . . . . . 13 . 58 Knockbacks 34 | . . . 1 19 9 2 3 . . Impact . | . . . . . . . . . . Kinetic 34 | . . . 1 19 9 2 3 . . Secondary . | . . . . . . . . . . Self-Inflicted Damage 600 | . . . 82 447 . 45 26 . . Shots 17 | . . . 3 12 . 1 1 . . Rammed 5 | . . . . . . . 5 . . Targets Rammed 5 | . . . . . . . 5 . . Kicked . | . . . . . . . . . . Crushed . | . . . . . . . . . . Highest Temperature 403 | . 18 4 . 403 264 260 197 . 33 Average Temperature 86 | . 9 3 . 102 76 60 68 . 21 Received Heat Transfer 2415 | . 126 . 153 954 408 117 369 . 288 Siege Activations . | . . . . . . . . . . Robots Corrupted . | . . . . . . . . . . Combat Hostiles . | . . . . . . . . . . Parts Fried . | . . . . . . . . . . Impact Corruptions 1 | . . . . . . . 1 . . Robots Melted . | . . . . . . . . . . Combat Hostiles . | . . . . . . . . . . Parts Melted 1 | . . . . 1 . . . . . Heat Transferred 592 | . . . . 592 . . . . . Parts Sabotaged . | . . . . . . . . . . Parts Stolen . | . . . . . . . . . . Parts Stripped . | . . . . . . . . . . Power Chain Reactions . | . . . . . . . . . . Alert | -11 -10 -10 -10 -8 -7 -7 -7 -7 -7 ------- Run | Yrd Mat Min Sub Mat Fac Low Low Zio Dee Peak Influence 677 | 5 278 108 . 677 555 . . . . Initial 308 | . 3 108 . . 308 . . . . Average 308 | 1 111 70 . 404 308 . . . . Maximum Alert Level 2 | . 1 . . 2 2 . . . . Low Security (%) 26 | 100 76 100 . 13 13 . . . . Level 1 29 | . 23 . . 16 52 . . . . Level 2 43 | . . . . 70 33 . . . . Level 3 . | . . . . . . . . . . Level 4 . | . . . . . . . . . . Level 5 . | . . . . . . . . . . High Security . | . . . . . . . . . . Max Security . | . . . . . . . . . . Squads Dispatched 22 | . 1 1 . 5 15 . . . . Investigation 1 | . . 1 . . . . . . . Extermination 4 | . . . . . 4 . . . . Reinforcement 9 | . 1 . . 3 5 . . . . Assault 2 | . . . . 2 . . . . . Garrison 6 | . . . . . 6 . . . . Intercept . | . . . . . . . . . . Searches Triggered . | . . . . . . . . . . Construction Impeded 1 | . . . . . 1 . . . . Haulers Reinforced 1 | . . . . . 1 . . . . Active Scanning Responses . | . . . . . . . . . . Cargo Convoy Interrupts . | . . . . . . . . . . Stealth | -11 -10 -10 -10 -8 -7 -7 -7 -7 -7 --------- Run | Yrd Mat Min Sub Mat Fac Low Low Zio Dee Distress Signals 10 | . 3 . . 4 3 . . . . Communications Jammed . | . . . . . . . . . . Distress Signals . | . . . . . . . . . . Times Spotted 147 | . 16 . 13 60 35 4 13 . 6 Peak Tracking Total 8 | . 5 . 2 8 4 4 4 . 8 Tactical Retreats 13 | . 4 . . 1 5 . 3 . . Traps | -11 -10 -10 -10 -8 -7 -7 -7 -7 -7 ------- Run | Yrd Mat Min Sub Mat Fac Low Low Zio Dee Traps Triggered 5 | . 2 . 2 . 1 . . . . Indirectly . | . . . . . . . . . . Trap Hack Attempts . | . . . . . . . . . . Triggered . | . . . . . . . . . . Disarmed . | . . . . . . . . . . Reprogrammed . | . . . . . . . . . . Reused . | . . . . . . . . . . Traps Extracted . | . . . . . . . . . . Installed . | . . . . . . . . . . Triggered 3 | . . . . . . . 3 . . Machines | -11 -10 -10 -10 -8 -7 -7 -7 -7 -7 ---------- Run | Yrd Mat Min Sub Mat Fac Low Low Zio Dee Machines Disabled 8 | . . . 1 6 1 . . . . Max in Single Turn 1 | . . . 1 1 1 . . . . Machines Repaired . | . . . . . . . . . . Machines Dismantled . | . . . . . . . . . . Machines Sabotaged . | . . . . . . . . . . Overloaded Fab Kills . | . . . . . . . . . . Hacking | -11 -10 -10 -10 -8 -7 -7 -7 -7 -7 --------- Run | Yrd Mat Min Sub Mat Fac Low Low Zio Dee Machines Accessed 24 | . 1 1 2 9 10 . 1 . . Terminals 16 | . 1 . . 8 7 . . . . Fabricators . | . . . . . . . . . . Repair Stations . | . . . . . . . . . . Recycling Units 1 | . . . . . 1 . . . . Scanalyzers 2 | . . . . 1 1 . . . . Garrison Access 1 | . . . . . 1 . . . . Total Hacks 52 | . 3 1 6 20 19 . 3 . . Successful 34 | . 2 1 6 13 9 . 3 . . Failed 18 | . 1 . . 7 10 . . . . Catastrophic 5 | . . . . 1 4 . . . . Database Lockouts . | . . . . . . . . . . Manual 29 | . 2 . 1 9 13 . . 4 . Terminals 35 | . 3 . . 18 14 . . . . Fabricators . | . . . . . . . . . . Repair Stations . | . . . . . . . . . . Recycling Units 3 | . . . . . 3 . . . . Scanalyzers 3 | . . . . 2 1 . . . . Garrison Access 1 | . . . . . 1 . . . . Terminal Hacks 20 | . 1 1 6 7 2 . 3 . . Record 9 | . . . 5 1 . . 3 . . Prototype ID Bank 1 | . . . . 1 . . . . . Open Door 1 | . . 1 . . . . . . . Branch Access Points 2 | . . . . 1 1 . . . . Terminal Index 2 | . . . . 1 1 . . . . Dispatch Records 1 | . . . . 1 . . . . . Maintenance Status 1 | . 1 . . . . . . . . Hauler Manifests 1 | . . . . 1 . . . . . Zone Layout 1 | . . . . 1 . . . . . Derelict Proto ID Bank 1 | . . . 1 . . . . . . Fabricator Hacks . | . . . . . . . . . . Repair Station Hacks . | . . . . . . . . . . Recycling Unit Hacks 3 | . . . . . 3 . . . . Process 1 | . . . . . 1 . . . . Report Inventory 1 | . . . . . 1 . . . . Retrieve Matter 1 | . . . . . 1 . . . . Scanalyzer 2 | . . . . 2 . . . . . Insert Component 1 | . . . . 1 . . . . . Analyze 1 | . . . . 1 . . . . . Garrison Access Hacks . | . . . . . . . . . . Unauthorized Hacks 9 | . 1 . . 4 4 . . . . Terminals 9 | . 1 . . 4 4 . . . . Botnet 9 | . 1 . . 4 4 . . . . Fabricators . | . . . . . . . . . . Repair Stations . | . . . . . . . . . . Recycling Units . | . . . . . . . . . . Scanalyzers . | . . . . . . . . . . Garrison Access . | . . . . . . . . . . Data Cores Recovered . | . . . . . . . . . . Used . | . . . . . . . . . . Hacking Detections 14 | . . . . 5 9 . . . . Full Trace Events . | . . . . . . . . . . Feedback Events . | . . . . . . . . . . Feedback Blocked . | . . . . . . . . . . Robot Schematics Acquired . | . . . . . . . . . . Robots Built . | . . . . . . . . . . Authchips . | . . . . . . . . . . Time . | . . . . . . . . . . Total Robot Build Rating . | . . . . . . . . . . Part Schematics Acquired 1 | . . . . 1 . . . . . Parts Built . | . . . . . . . . . . Authchips . | . . . . . . . . . . Time . | . . . . . . . . . . Total Part Build Rating . | . . . . . . . . . . Parts Repaired . | . . . . . . . . . . Time . | . . . . . . . . . . Parts Recycled . | . . . . . . . . . . Recycled Matter 254 | . . . . . 254 . . . . Retrieved Matter 336 | . . . . . 336 . . . . Retrieved Components . | . . . . . . . . . . Parts Scanalyzed 1 | . . . . 1 . . . . . Part Schematics Acquired 1 | . . . . 1 . . . . . Parts Damaged . | . . . . . . . . . . Bothacking | -11 -10 -10 -10 -8 -7 -7 -7 -7 -7 ------------ Run | Yrd Mat Min Sub Mat Fac Low Low Zio Dee Used RIF Installer . | . . . . . . . . . . Robots Hacked . | . . . . . . . . . . Non-combat . | . . . . . . . . . . Combat . | . . . . . . . . . . Robot Hacks Applied . | . . . . . . . . . . Relay Couplers Released . | . . . . . . . . . . Fabnet Peak Effective % . | . . . . . . . . . . Robots Rewired . | . . . . . . . . . . Allies Hacked . | . . . . . . . . . . Hacks Repelled . | . . . . . . . . . . Allies | -11 -10 -10 -10 -8 -7 -7 -7 -7 -7 -------- Run | Yrd Mat Min Sub Mat Fac Low Low Zio Dee Total Allies 7 | . . 1 . . . . 2 4 . Largest Group 4 | . . 1 . . . . 2 4 . Highest-Rated Group 158 | . . 31 . . . . 62 158 . Highest-Rated Ally 41 | . . 31 . . . . 31 41 . Total Orders . | . . . . . . . . . . Ally Attacks . | . . . . . . . . . . Total Damage . | . . . . . . . . . . Kills . | . . . . . . . . . . Allies Corrupted . | . . . . . . . . . . Allies Melted . | . . . . . . . . . . Intel | -11 -10 -10 -10 -8 -7 -7 -7 -7 -7 ------- Run | Yrd Mat Min Sub Mat Fac Low Low Zio Dee Robot Analysis Total . | . . . . . . . . . . Derelict Logs Recovered 7 | . . 1 1 . . 1 2 2 . Drone Launches . | . . . . . . . . . . Drone Recoveries . | . . . . . . . . . . Exploration | -11 -10 -10 -10 -8 -7 -7 -7 -7 -7 ------------- Run | Yrd Mat Min Sub Mat Fac Low Low Zio Dee Turns Passed 13044 | 197 298 611 3272 2759 2728 423 1119 1217 420 Spaces Moved 7194 | 112 136 309 2157 1467 1593 282 432 515 191 Core 35 | 6 1 . . . . . 2 . 26 Treads 1239 | 106 135 103 . 6 . . 209 515 165 Legs . | . . . . . . . . . . Wheels 5920 | . . 206 2157 1461 1593 282 221 . . Hover . | . . . . . . . . . . Flight . | . . . . . . . . . . Fastest Speed 50 | 50 160 140 129 130 120 120 145 232 50 Average Speed 159 | 154 162 146 140 155 146 135 227 234 211 Slowest Speed 1900 | 160 320 160 215 312 260 145 1900 235 465 Overloaded Moves . | . . . . . . . . . . Propulsion Burnouts . | . . . . . . . . . . Robots Hopped . | . . . . . . . . . . Cave-ins Triggered . | . . . . . . . . . . Exploration Rate (%) 52 | 6 30 62 87 89 35 48 57 72 35 Regions Visited 9 Branch Regions 6 Pre-discovered Areas 3 | . . . 1 . . . . 2 . Known Exits Taken 3 | . . . . . 1 . 1 1 . Unknown Exits Taken 6 | 1 1 1 1 1 . 1 . . . Scrap Searched 10 | . . 1 5 . . 1 1 2 . Spaces Dug 61 | . . . 1 56 4 . . . . Terrain Destroyed 586 | . . . 102 314 11 75 84 . . Melee 7 | . . . 1 4 2 . . . . Projectile 99 | . . . 1 75 9 7 7 . . AOE 480 | . . . 100 235 . 68 77 . . Terrain Rammed . | . . . . . . . . . . Walls Destroyed . | . . . . . . . . . . Machines Disabled . | . . . . . . . . . . Actions | -11 -10 -10 -10 -8 -7 -7 -7 -7 -7 --------- Run | Yrd Mat Min Sub Mat Fac Low Low Zio Dee Total 8102 | 126 175 462 2286 1735 1792 298 505 524 199 Wait 307 | . 7 145 31 40 59 1 23 1 . Move 7185 | 111 135 308 2156 1466 1592 281 431 514 191 Hop . | . . . . . . . . . . Pick Up 90 | 4 3 4 7 42 18 1 3 6 2 Fast Attach 28 | 7 3 . 4 3 5 2 2 2 . Attach 51 | . . . 4 22 13 . 10 1 1 Detach 5 | . . . 1 . 2 . 1 . 1 Swap 56 | . 4 3 9 23 10 4 3 . . Drop 34 | . 2 . . 24 7 . 1 . . Fire 283 | 4 21 2 37 109 83 9 15 . 3 Melee 58 | . . . 37 6 3 . 11 . 1 Ram 2 | . . . . . . . 2 . . Kick . | . . . . . . . . . . Crush 3 | . . . . . . . 3 . . Escape Stasis . | . . . . . . . . . . Rewire . | . . . . . . . . . . Trap . | . . . . . . . . . . Miscellaneous . | . . . . . . . . . . Route ------- -11/Scrapyard -10/Materials -10/Mines -10/Subcaves -8/Materials (discovered 3 exits: *Fac x3) -7/Factory (discovered 3 exits: *Fac / *Low x2) -7/Lower Caves -7/Lower Caves (discovered 2 exits: Fac / *Zio) -7/Zion -7/Deep Caves History --------- Turn | Location | Event 8 | -11/Scrapyard | Discovered new exit (range 15) 198 | -11/Scrapyard | Entered Materials 304 | -10/Materials | Build established: Mutant 470 | -10/Materials | Discovered new exit (range 6) 496 | -10/Materials | Entered Mines 654 | -10/Mines | Met a Derelict shopkeep closing up shop 793 | -10/Mines | Received a Mining Laser from a helpful Derelict 848 | -10/Mines | Received a Rocket Launcher from a helpful Derelict 888 | -10/Mines | Learned 2 Materials zone layouts 1086 | -10/Mines | Discovered new exit (range 5) 1107 | -10/Mines | Entered Subcaves 1119 | -10/Subcaves | Learned 2 Materials zone layouts 1223 | -10/Subcaves | Shifting Twisted Machinery released Sub. Power Source 1223 | -10/Subcaves | Shifting Twisted Machinery released Mak. Axe 1898 | -10/Subcaves | Discovered new exit (range 9) 2033 | -10/Subcaves | A swath of the cavern ceiling suddenly collapsed 2217 | -10/Subcaves | Shifting Twisted Machinery released Mak. Light Armor Plating 2265 | -10/Subcaves | Shifting Twisted Machinery released Sub. Monowheel 2520 | -10/Subcaves | Visited Clippyterm 3269 | -10/Subcaves | Core integrity fell below 50% 3301 | -10/Subcaves | Lost 4 parts (1p2n1w) 3367 | -10/Subcaves | Shifting Twisted Machinery released Hvy. Battle Rifle 3428 | -10/Subcaves | Shifting Twisted Machinery released Hvy. Riot Gun 3447 | -10/Subcaves | Learned location of Zion (-7) 3447 | -10/Subcaves | Met a Zionite searching for "candidates" 3640 | -10/Subcaves | Core integrity fell below 20% 3941 | -10/Subcaves | Build established: Scavenger-Mutant 4220 | -10/Subcaves | Visited 4L-MR0's lab 4238 | -10/Subcaves | Found Meta Core 4379 | -10/Subcaves | Entered Materials 4379 | -8/Materials | Evolved 4 slots: Utility x4 4670 | -8/Materials | Lost 3 parts (2n1u) 4719 | -8/Materials | Destroyed 8 combat bots 4863 | -8/Materials | Lost 3 parts (1p2u) 4979 | -8/Materials | Discovered new exit (range 13) 5136 | -8/Materials | Build established: Mutant 5703 | -8/Materials | Discovered new exit (range 11) 6779 | -8/Materials | First assault squad dispatched 6883 | -8/Materials | Destroyed 7 combat bots 6892 | -8/Materials | Core integrity fell below 50% 6946 | -8/Materials | Core integrity fell below 20% 6969 | -8/Materials | Lost 18 parts (2p3n8u5w) 7093 | -8/Materials | Discovered new exit (range 16) 7138 | -8/Materials | Entered Factory 7138 | -7/Factory | Evolved 2 slots: Propulsion x1, Weapon x1 7659 | -7/Factory | Build established: Tank 8042 | -7/Factory | Discovered new exit (range 9) 8433 | -7/Factory | Garrison activated, responded to threat 8901 | -7/Factory | Discovered new exit (range 14) 9509 | -7/Factory | Identified exit to Lower Caves 9614 | -7/Factory | Build established: Mutant 9640 | -7/Factory | Garrison activated, responded to threat 9699 | -7/Factory | Lost 4 parts (1n2u1w) 9866 | -7/Factory | Entered Lower Caves 9927 | -7/Lower Caves | Learned Factory terminal intel 10041 | -7/Lower Caves | Build established: Gunner 10204 | -7/Lower Caves | Discovered new exit (range 14) 10289 | -7/Lower Caves | Entered another Lower Caves area 10659 | -7/Lower Caves | Core integrity fell below 50% 10708 | -7/Lower Caves | Lost 6 parts (1n2u3w) 10795 | -7/Lower Caves | Identified exit to Factory 11042 | -7/Lower Caves | Lost 5 parts (1p1u3w) 11277 | -7/Lower Caves | Build established: Mutant 11309 | -7/Lower Caves | A Commander dispatched an escort 11319 | -7/Lower Caves | Learned Factory emergency access door positions 11319 | -7/Lower Caves | Learned Research garrison access intel 11326 | -7/Lower Caves | Discovered new exit (range 8) 11404 | -7/Lower Caves | Identified exit to Zion 11408 | -7/Lower Caves | Entered Zion 11408 | -7/Zion | Accompanied by 2 allies 11409 | -7/Zion | Commander's escort returned to base 11409 | -7/Zion | Commander's escort returned to base 11460 | -7/Zion | Found CR-A16's Pointy Stick 11501 | -7/Zion | System corruption cleaned by Quarantine Array 11534 | -7/Zion | Learned location of Quarantine (-2) 11590 | -7/Zion | Learned location of Warlord (-5) 11737 | -7/Zion | Learned location of 1 exit from Factory 11814 | -7/Zion | Given A8's code to call for help 12009 | -7/Zion | Imprinted 12011 | -7/Zion | Declared Zion's savior 12408 | -7/Zion | Acquired unknown access codes intercepted by a Zionite 12575 | -7/Zion | Opened final containment barrier to the Deep Caves 12617 | -7/Zion | Discovered new exit (range 3) 12617 | -7/Zion | Saw the warning signs outside the Deep Caves entrance 12622 | -7/Zion | Identified exit to Deep Caves 12625 | -7/Zion | Entered Deep Caves 12625 | -7/Deep Caves | Accompanied by 4 allies 12665 | -7/Deep Caves | Found Surveybot 24 Chip 12670 | -7/Deep Caves | Found Surveybot 24 Scanner 12998 | -7/Deep Caves | Attacked by Z-Imprinter 13024 | -7/Deep Caves | Z-Facility disabled 13032 | -7/Deep Caves | Released all parts (5) 13036 | -7/Deep Caves | Core integrity fell below 20% 13045 | -7/Deep Caves | Destroyed by 5E-OFE(z) with Zionite Laser-S Last Messages --------------- 12670_ Acquired Surveybot 24 Scanner. 12990_ NEW_ZION: Z-Facility proximity alert. Z-Imprinter: GET AWAY FROM HERE! I've worked too hard for our future just to have you ruin everything! 12998_ Slug penetrates Z-Imprinter. 13001_ Mic. Nuclear Core destroyed. 13004_ ZG-CH9(o) is busy at the terminal. 13004_ Imp. Light Armor Plating destroyed. 13015_ Med. Treads destroyed. 13015_ Adv. Terrain Scan Processor destroyed. 13021_ Chainsword destroyed. 13024_ Z-Facility disabled. 13027_ Imp. Treads destroyed. 13028_ Imp. Targeting Computer destroyed. 13032_ Released Gauss Rifle. 13032_ Released Imp. Signal Interpreter. 13032_ Released Huge Storage Unit. 13032_ Released Adv. Treads. 13032_ Released Adv. Assault Cannon. Map ----- +----------------------------------------------------+ | | | | | | | | | | | | | | | | | | | | | ?????????????????????????#???????????????????????? | | ????????????????????????? ??????###############??? | | ????????????????????????# ???#### ##?? | | ????????????????????????# ??## #?? | | ????????????????######??# ?## ### | | ??????????????###zz # #?# ## # | | ????????????? # z ## | | ????????????? | | ???????????? | | ???????????? | | ???????????? | | ??????????? """" " """ !*! | | ??????????? """"""""""" !/!! | | ?????????? """""""""""""!][!|] | | ?????????? """""""""""" !!!!! | | ?????????? @ """"""""""" !!= | | ?????????? """""""""""""" | | ?????????? """"??""""""" | | ??????????? """"??"""""""" | | ??????????? """"??"""""""" | | ???????????? """"???"" " " | | ???????????? """?????" | | ???????????? ""?????? | | ????????????? ""??????" | | ????????????? ""??????" | | ?????????????? "???????""" | | ?????????????? "?????????""" | | ???????????????? "??????????? | | ?????????????????? "???????????? | | ????????????????????? ????????????? | | ??????????????????????? ???????????????????? | | ?????????????????????????????????????????????????? | | ?????????????????????????????????????????????????? | | ?????????????????????????????????????????????????? | | ?????????????????????????????????????????????????? | | ?????????????????????????????????????????????????? | | ?????????????????????????????????????????????????? | | ?????????????????????????????????????????????????? | | ?????????????????????????????????????????????????? | | ?????????????????????????????????????????????????? | +----------------------------------------------------+ Best States ------------- Heat Dissipation 53 Energy Generation 16 Energy Capacity 290 Matter Stores 300 Matter Capacity 300 Sight Range 16 Terrain Scan Range 16 Terrain Scan Density 210 Jamming Range 12 Armor Coverage 1200 Resistance: KI 30 Resistance: TH 10 Resistance: EX 25 Propulsion Shielding 66 Evasion (%) 50 Targeting Accuracy 6 Recoil Reduction 3 Item Schematics ----------------- Mak. Light Armor Plating | -8/Materials | Scanalyzed Robot Schematics ------------------ None Fabricated ------------ Nothing Alien Tech Used ----------------- None Achievements -------------- Signs Are For Wimps Challenges ------------ None Game ------ Seed NetworkPiercingFirepult Manual? 0 Play Time 01:55:48 Cumulative 50.9 hours Start 2024.07.25 @ 22:45:11 End 2024.07.31 @ 22:42:43 Sessions 3 Manual Loads 0 Difficulty Rogue Special Mode None Game No. 73 Rogue 73 Adventurer 0 Explorer 0 Win Type - Total 0 Types 0/0/0/0/0/0/0/0/0 Lore% 27 Gallery% 32 Achievement% 35 Wizard Run 0 Options --------- Layout 1 ASCII 0 Keyboard 0 Movement Arrows Keybinds 0 Fullscreen 1 Font 24/Crisp Map View 50x40 Zoom Use 0% Tactical HUD 1 Map Filters NONE Filters NONE Steam 1 RUN: b8558015-63aa-4b6e-95b7-fe98889d69ff